Cogmind - Beta 16 @@@ ROGUE MODE // 2025.12.02 @ 16:35:15 Player: Blaj Result: Destroyed by Y-54 Guardian with Flak Gun Performance ------------- Evolutions (4) 2000 Regions Visited (4) 800 Robots Destroyed (55) 275 Value Destroyed (2150) 2150 Prototype IDs (15) 300 Alien Tech Used (0) 0 Bonus (864) 864 TOTAL SCORE: 6389 Bonus ------- High Alert Combat Kills 105 Registered with UFD 300 Met Optimus in HQ 500 Friendly Fire -41 Cogmind --------- Core Integrity 0/850 Matter 123/300 Energy 100/100 System Corruption 11% Temperature Cool (12) Movement Core (50) Location -6/Factory Parts ------- > --- POWER (1) -------- (None) > --- PROPULSION (5) --- (None) > --- UTILITY (6) ------ Surveybot 24 Chip Improved Hacking Suite > --- WEAPON (3) ------- (None) > --- INVENTORY (5) ---- Angular Momentum Engine Experimental Terrain Scanner Hypervelocity Mass Driver LU-1G1's Laser Shovel Peak State ------------ > --- POWER ------------ Graviton Reactor > --- PROPULSION ------- Overtuned Titanium Leg Overtuned Titanium Leg Overtuned Titanium Leg Overtuned Titanium Leg Assembled Alloy Leg > --- UTILITY ---------- Scrap Suit High-capacity Storage Unit Experimental Terrain Scanner Surveybot 24 Chip Makeshift Hacking Suite > --- WEAPON ----------- Helical Railgun Helical Railgun LU-1G1's Laser Shovel > --- INVENTORY -------- High-capacity Matter Pod Seismic Detector Transport Network Coupler Transmission Jammer ECM Suite Improved Reaction Control System Hardened Light Armor Plating Hardlight Generator Tech Extrapolator System Restoration Module Improved Lightning Gun Overtuned Pulse Rifle Overtuned Pulse Rifle Heavy Machine Gun Improved Grenade Launcher Long-range Missile Launcher Precision Rocket Launcher CPS Tube CPS Tube [Rating: 90] Favorites ----------- Power Angular Momentum Engine Engine Angular Momentum Engine Reactor Graviton Reactor Propulsion Light Treads Treads Light Treads Leg Overtuned Titanium Leg Flight Unit Cooled Cesium-ion Thruster Utility Seismic Detector Device Seismic Detector Storage High-capacity Storage Unit Processor Surveybot 24 Chip Hackware Makeshift Hacking Suite Protection Improved Medium Armor Plating Weapon Battle Cannon Energy Gun Overtuned Pulse Rifle Energy Cannon Particle Cannon Ballistic Gun Helical Railgun Ballistic Cannon Battle Cannon Launcher Improved Grenade Launcher Special Weapon Mining Laser Special Melee Weapon Datajack Build | -11 -10 -10 -9 -6 ------- Run | Yrd Mat Sub Scr Fac Slots Evolved 8 | . . . . 8 Power . | . . . . . Propulsion 3 | . . . . 3 Utility 4 | . . . . 4 Weapon 1 | . . . . 1 Parts Attached 71 | 1 8 2 28 32 Power 7 | . . . 4 3 Engine 6 | . . . 3 3 Core . | . . . . . Reactor 1 | . . . 1 . Propulsion 17 | . 3 . 6 8 Treads 2 | . 2 . . . Leg 14 | . 1 . 6 7 Wheel . | . . . . . Hover . | . . . . . Flight 1 | . . . . 1 Utility 22 | 1 2 . 5 14 Device 11 | 1 . . 1 9 Storage 3 | . 1 . 2 . Processor 2 | . . . 1 1 Hackware 3 | . . . . 3 Protection 3 | . 1 . 1 1 Artifact . | . . . . . Weapon 25 | . 3 2 13 7 Energy Gun 7 | . 2 . 4 1 Energy Cannon 1 | . . . 1 . Ballistic Gun 6 | . . . 3 3 Ballistic Cannon 3 | . . 1 . 2 Launcher 3 | . . . 2 1 Special Weapon 4 | . 1 . 3 . Impact Weapon . | . . . . . Slashing Weapon . | . . . . . Piercing Weapon . | . . . . . Special Melee Weapon 1 | . . 1 . . Unidentified Prototypes 8 | . . . 6 2 Parts Lost 20 | . . . 3 17 Power 3 | . . . 1 2 Propulsion 6 | . . . 1 5 Utility 6 | . . . . 6 Weapon 5 | . . . 1 4 Highest Loss Streak 7 | . . . 3 7 To Critical Strikes . | . . . . . Average Backups 14 | 6 7 11 15 18 Power . | 1 1 1 . . Propulsion . | 4 2 2 . . Utility 6 | . 2 4 6 8 Weapon 4 | 1 1 3 5 5 Tool/Special . | . . . . . Unused Backups 30 | . 5 . 14 11 Power 2 | . . . 2 . Propulsion 3 | . 1 . 2 . Utility 13 | . 4 . 3 6 Weapon 10 | . . . 6 4 Tool/Special 2 | . . . 1 1 Average Slot Usage (%) 95 | . 100 100 97 87 Engine 10 | . 14 14 13 2 Reactor 1 | . . . . 3 Treads 15 | . 4 28 23 . Leg 13 | . 23 . 4 30 Device 11 | . 8 14 12 12 Storage 11 | . 14 14 13 5 Processor 1 | . . . . 5 Protection 1 | . 5 . . 1 Energy Gun 5 | . 24 4 1 1 Ballistic Gun 3 | . . . 1 12 Ballistic Cannon 7 | . . 9 11 1 Special Weapon 4 | . 3 11 6 1 Special Melee Weapon 3 | . . 2 5 . Peak Build Rating 90 | 7 8 9 49 90 Average Rating 30 | 6 7 8 17 77 On Entrance 15 | 6 7 8 9 46 Avg Prop Armor Cover (%) 6 | . . . 9 4 Naked Turns . | . . . . . Heaviest Build 95 | 14 29 30 72 95 Greatest Support 108 | 20 40 40 49 108 Greatest Overweight (x) 2 | . . . 2 1 Average Overweight (x) . | . . . . . Largest Inventory Capacity 35 | 8 15 15 35 20 Average Capacity 16 | 8 9 15 17 19 Most Carried 20 | 7 10 12 20 20 Average Carried 15 | 6 7 11 15 18 Final Capacity 20 | 8 15 15 20 5 Final Carried 20 | 7 10 12 20 4 Scrap Suit Usage (%) 21 | . . . . 90 Parts Cannibalized 5 | . . . . 5 Class Distribution -------------------- 72% | Mutant 21% | Scavenger-Scrapper 5% | Scavenger-Mutant Dominant Class ---------------- Mutant | -10/Materials Mutant | -10/Subcaves Mutant | -9/Scraptown Scavenger-Scrapper | -6/Factory Resources | -11 -10 -10 -9 -6 ----------- Run | Yrd Mat Sub Scr Fac Matter Collected 2641 | 210 117 . 605 1709 Remotely 197 | . . . . 197 Salvage Created 2620 | 158 171 . 109 2182 Parts 101 | 9 10 . 2 80 Haulers Intercepted 5 | . 1 . . 4 Recyclers Shooed 6 | . . . . 6 Parts Field Recycled . | . . . . . Retrieved Matter . | . . . . . Parts Self-Destructed 12 | . . 3 9 . Prevented . | . . . . . Parts Restored . | . . . . . Kills | -11 -10 -10 -9 -6 ------- Run | Yrd Mat Sub Scr Fac Combat Hostiles Destroyed 37 | . 3 . 3 31 Guns 23 | . 3 . 1 19 Cannons 7 | . . . . 7 AOE 7 | . . . 2 5 Classes Destroyed 15 | 2 3 . 2 8 Worker 1 | . . . . 1 Builder 1 | . . . . 1 Tunneler 4 | 4 . . . . Hauler 5 | . 1 . . 4 Recycler 4 | 1 . . . 3 Mechanic 1 | . . . . 1 Watcher 2 | . 1 . . 1 Swarmer 3 | . . . . 3 Grunt 15 | . 3 . . 12 Brawler 1 | . . . . 1 Sentry 2 | . . . . 2 Hunter 4 | . . . . 4 Programmer 9 | . . . . 9 Federalist 2 | . . . 2 . Scrapper 1 | . . . 1 . Best Kill Streak 10 | 3 1 . 2 10 Combat Bots Only 8 | . 1 . 2 8 Max Kills in Single Turn 2 | 1 1 . 2 2 Gunslinging . | . . . . . Exploded 2 | . . . 2 2 Melee . | . . . . . Uniques/NPCs Destroyed . | . . . . . Combat | -11 -10 -10 -9 -6 -------- Run | Yrd Mat Sub Scr Fac Hostile Shots Fired 471 | . 25 1 67 378 Missed 154 | . 6 . 17 131 Hits 317 | . 19 1 50 247 Melee 8 | . . . 4 4 Projectile 309 | . 19 1 46 243 AOE 2 | . . . . 2 Critical Strikes 11 | . . . 4 7 Damage Taken 4561 | . 234 26 819 3482 Core 1076 | . 43 26 157 850 Absorbed by Shields 188 | . . . . 188 Redirected to Shielding 6 | . 6 . . . Regen/Repaired (Parts) 50 | . . . . 50 Core Remaining (%) 54 | 100 . . 9 . Volleys Fired 150 | 9 30 5 18 88 Largest 3 | 2 2 1 2 3 Hottest 160 | 90 150 100 160 156 Shots Fired 317 | 18 54 5 23 217 Gun 265 | 18 49 . 19 179 Cannon 28 | . . . . 28 Launcher 8 | . . . 1 7 Special 16 | . 5 5 3 3 Kinetic 188 | . . . 13 175 Thermal 121 | 18 54 5 9 35 Explosive 8 | . . . 1 7 Electromagnetic . | . . . . . Robot Hit Streak 24 | 4 24 . 6 20 Robot Miss Streak 3 | 2 2 . 3 3 Penetration Max 1 | . . . . 1 Secondary Targets 5 | . . . . 5 Max Gunslinging Chain 1 | . . . . 1 Shots Hit Robots 207 | 12 37 3 20 135 Core Hits 115 | 6 11 . 8 90 Critical Kills 8 | . . . . 8 Critical Parts Destroyed 11 | . . . . 11 Critical Strikes 23 | . 2 . . 21 Burn 4 | . 2 . . 2 Destroy 19 | . . . . 19 Melee Attacks 8 | . . 3 5 . Impact . | . . . . . Slashing . | . . . . . Piercing . | . . . . . Sneak Attacks 8 | . . 3 5 . Combat Hostiles . | . . . . . Follow-up Attacks . | . . . . . Damage Inflicted 6966 | 143 454 . 610 5759 Guns 4535 | 143 441 . 326 3625 Cannons 597 | . . . . 597 Explosions 1779 | . . . 284 1495 Melee . | . . . . . Ramming 55 | . 13 . . 42 Kinetic 3922 | . . . 195 3727 Thermal 1210 | 143 441 . 131 495 Explosive 1779 | . . . 284 1495 Electromagnetic . | . . . . . Impact . | . . . . . Slashing . | . . . . . Piercing . | . . . . . Highest Corruption 11 | . . . 5 11 Average Corruption 3 | . . . 5 3 Corruption Purged 1 | . . . . 1 Corruption Blocked . | . . . . . Effects 38 | . . . 15 23 Message Errors 9 | . . . 3 6 Matter Fused 8 | . . . 6 2 Heat Flow Errors 4 | . . . 1 3 Energy Discharges 1 | . . . 1 . Parts Rejected 4 | . . . 2 2 Data Loss (minor) 7 | . . . 1 6 Data Loss (major) 2 | . . . 1 1 Misdirections 3 | . . . . 3 Overload Shots . | . . . . . Overflow Damage 26 | . . . 26 . Projectiles . | . . . . . Explosions 26 | . . . 26 . Melee . | . . . . . Knockbacks 9 | . 1 . . 8 Impact 1 | . 1 . . . Kinetic 8 | . . . . 8 Secondary . | . . . . . Self-Inflicted Damage 64 | . . . . 64 Shots 2 | . . . . 2 Rammed 2 | . 2 . . . Targets Rammed 5 | . 2 . . 3 Kicked 3 | . . . . 3 Crushed . | . . . . . Highest Temperature 336 | 120 150 . 233 336 Average Temperature 84 | 52 60 . 76 103 Received Heat Transfer 834 | . 126 . 141 567 Siege Activations . | . . . . . Martial Activations . | . . . . . Shielding Activations . | . . . . . Robots Disrupted . | . . . . . Combat Hostiles . | . . . . . Robots Corrupted . | . . . . . Combat Hostiles . | . . . . . Parts Fried . | . . . . . Impact Corruptions . | . . . . . Robots Melted . | . . . . . Combat Hostiles . | . . . . . Parts Melted 5 | 3 2 . . . Heat Transferred 3224 | 360 1277 . 287 1300 Parts Sabotaged . | . . . . . Parts Stolen . | . . . . . Parts Stripped . | . . . . . Power Chain Reactions . | . . . . . Alert | -11 -10 -10 -9 -6 ------- Run | Yrd Mat Sub Scr Fac Maximum Alert Level 2 | . . . . 2 Low Security (%) 81 | 100 100 . . 70 Level 1 11 | . . . . 19 Level 2 6 | . . . . 10 Level 3 . | . . . . . Level 4 . | . . . . . Level 5 . | . . . . . High Security . | . . . . . Max Security . | . . . . . Peak Influence 643 | 10 59 . . 643 Initial 3 | . 3 . . . Average 113 | 2 12 . . 176 Influence Increases 1647 | 25 247 . . 1375 Destroy 0b10 Robot/C 680 | . 60 . . 620 Destroy 0b10 Robot/NC 90 | 25 10 . . 55 Destroy Leader 144 | . 14 . . 130 Successful Hack 63 | . 38 . . 25 Disable Machine 120 | . . . . 120 Destroy Structure 85 | . 5 . . 80 Partial Spotted 15 | . . . . 15 Lose Combat Pursuer 450 | . 120 . . 330 Influence Decreases 1004 | 20 252 . . 732 Entered New Map 2 | . 2 . . . Time Decay 832 | 20 250 . . 562 Lost Part 170 | . . . . 170 Squads Dispatched 14 | . . . . 14 Investigation 4 | . . . . 4 Extermination 5 | . . . . 5 Reinforcement 5 | . . . . 5 Assault . | . . . . . Garrison . | . . . . . Intercept . | . . . . . Searches Triggered . | . . . . . Construction Impeded 1 | . . . . 1 Haulers Reinforced . | . . . . . Active Scanning Responses . | . . . . . Cargo Convoy Interrupts 1 | . . . . 1 Stealth | -11 -10 -10 -9 -6 --------- Run | Yrd Mat Sub Scr Fac Distress Signals 6 | . 2 . . 4 Communications Jammed . | . . . . . Distress Signals . | . . . . . Times Spotted 128 | . 17 2 33 76 Peak Tracking Total 13 | . 4 2 6 13 Tactical Retreats 20 | . 5 . 1 14 ID Masks Used 1 | . . . 1 . Traps | -11 -10 -10 -9 -6 ------- Run | Yrd Mat Sub Scr Fac Traps Triggered 5 | . 1 . . 4 Indirectly . | . . . . . Trap Hack Attempts . | . . . . . Triggered . | . . . . . Disarmed . | . . . . . Reprogrammed . | . . . . . Reused . | . . . . . Traps Extracted . | . . . . . Installed . | . . . . . Triggered . | . . . . . Machines | -11 -10 -10 -9 -6 ---------- Run | Yrd Mat Sub Scr Fac Machines Disabled 14 | . . . 6 8 Max in Single Turn 1 | . . . 1 1 Machines Repaired . | . . . . . Machines Dismantled 4 | . . . 4 . Machines Sabotaged . | . . . . . Overloaded Fab Kills . | . . . . . Hacking | -11 -10 -10 -9 -6 --------- Run | Yrd Mat Sub Scr Fac Machines Accessed 22 | . 6 . 5 11 Terminals 10 | . 6 . . 4 Fabricators 5 | . . . . 5 Repair Stations 1 | . . . . 1 Recycling Units 1 | . . . . 1 Scanalyzers . | . . . . . Garrison Access . | . . . . . Total Hacks 68 | . 21 . 23 24 Successful 45 | . 10 . 23 12 Failed 23 | . 11 . . 12 Catastrophic 3 | . 1 . . 2 Database Lockouts . | . . . . . Manual 8 | . 2 . . 6 Terminals 29 | . 21 . . 8 Fabricators 12 | . . . . 12 Repair Stations 1 | . . . . 1 Recycling Units 3 | . . . . 3 Scanalyzers . | . . . . . Garrison Access . | . . . . . Terminal Hacks 34 | . 9 . 23 2 Record 16 | . . . 16 . Part Schematic 1 | . . . . 1 Robot Analysis 7 | . . . 7 . Level Access Points 1 | . . . . 1 Emergency Access Points 1 | . 1 . . . Locate Traps 2 | . 2 . . . Transport Status 1 | . 1 . . . Hauler Manifests 2 | . 2 . . . Zone Layout 3 | . 3 . . . Fabricator Hacks 6 | . . . . 6 Network Status 1 | . . . . 1 Load Schematic 2 | . . . . 2 Build 3 | . . . . 3 Repair Station Hacks . | . . . . . Recycling Unit Hacks . | . . . . . Scanalyzer . | . . . . . Garrison Access Hacks . | . . . . . Unauthorized Hacks 4 | . 1 . . 3 Terminals 2 | . 1 . . 1 Botnet 1 | . . . . 1 Operators 1 | . 1 . . . Fabricators 2 | . . . . 2 Report 1 | . . . . 1 Haulers 1 | . . . . 1 Repair Stations . | . . . . . Recycling Units . | . . . . . Scanalyzers . | . . . . . Garrison Access . | . . . . . Data Cores Recovered . | . . . . . Used . | . . . . . Hacking Detections 17 | . 6 . . 11 Full Trace Events 3 | . . . . 3 Feedback Events . | . . . . . Feedback Blocked . | . . . . . Robot Schematics Acquired . | . . . . . Robots Built . | . . . . . Authchips . | . . . . . Time . | . . . . . Total Robot Build Rating . | . . . . . Part Schematics Acquired 1 | . . . . 1 Parts Built 4 | . . . . 4 Authchips . | . . . . . Time 292 | . . . . 292 Total Part Build Rating 28 | . . . . 28 Part Studies Acquired . | . . . . . Parts Repaired . | . . . . . Time . | . . . . . Parts Recycled . | . . . . . Recycled Matter . | . . . . . Retrieved Matter . | . . . . . Retrieved Components . | . . . . . Parts Scanalyzed . | . . . . . Part Schematics Acquired . | . . . . . Parts Damaged . | . . . . . Bothacking | -11 -10 -10 -9 -6 ------------ Run | Yrd Mat Sub Scr Fac Used RIF Installer . | . . . . . Robots Hacked 6 | . . 1 5 . Non-combat 1 | . . 1 . . Combat 5 | . . . 5 . Robot Hacks Applied 8 | . . 3 5 . parse_system 8 | . . 3 5 . Relay Couplers Released . | . . . . . Fabnet Peak Effective % . | . . . . . Robots Rewired . | . . . . . Allies Hacked . | . . . . . Hacks Repelled . | . . . . . Allies | -11 -10 -10 -9 -6 -------- Run | Yrd Mat Sub Scr Fac Total Allies . | . . . . . Largest Group . | . . . . . Highest-Rated Group . | . . . . . Highest-Rated Ally . | . . . . . Total Orders . | . . . . . Ally Attacks . | . . . . . Total Damage . | . . . . . Kills . | . . . . . Allies Corrupted . | . . . . . Allies Melted 11 | . . . 11 . Intel | -11 -10 -10 -9 -6 ------- Run | Yrd Mat Sub Scr Fac Active Infowar (turns) 6457 | 4 740 268 4354 1091 Terrain 731 | . . . . 731 Seismic 5695 | 4 740 268 4228 455 ID Mask 126 | . . . 126 . Robot Analysis Total 7 | . . . 7 . Derelict Logs Recovered 1 | . . 1 . . Drone Launches . | . . . . . Drone Recoveries . | . . . . . Exploration | -11 -10 -10 -9 -6 ------------- Run | Yrd Mat Sub Scr Fac Turns Passed 8398 | 69 1191 268 4857 2013 Spaces Moved 4337 | 32 614 146 2228 1317 Core 62 | . . . . 62 Treads 2030 | . 120 146 1764 . Legs 2123 | 32 494 . 464 1133 Wheels . | . . . . . Hover . | . . . . . Flight 122 | . . . . 122 Fastest Speed 32 | 120 120 160 125 32 Average Speed 153 | 120 127 160 192 100 Slowest Speed 240 | 120 160 160 240 183 Overloaded Moves 17 | . . . . 17 Propulsion Burnouts 1 | . . . . 1 Robots Hopped 5 | . . . . 5 Potential Cave-ins 9 | . . . . 9 Cave-ins Triggered . | . . . . . Exploration Rate (%) 49 | 3 93 13 93 43 Regions Visited 4 Branch Regions 2 Pre-discovered Areas 2 | . . . 2 . Known Exits Taken . | . . . . . Unknown Exits Taken 4 | 1 1 1 1 . Scrap Searched 8 | . . . 8 . Spaces Dug 52 | . 5 . 17 30 Terrain Destroyed 118 | . 5 . 6 107 Melee . | . . . . . Projectile 56 | . 5 . 2 49 AOE 42 | . . . 1 41 Terrain Rammed . | . . . . . Walls Destroyed . | . . . . . Machines Disabled . | . . . . . Actions | -11 -10 -10 -9 -6 --------- Run | Yrd Mat Sub Scr Fac Total 5736 | 44 953 162 2751 1826 Wait 928 | 2 282 3 344 297 Move 4323 | 31 613 145 2227 1307 Hop 5 | . . . . 5 Pick Up 78 | 1 8 2 44 23 Fast Attach 31 | 1 3 . 18 9 Attach 25 | . . . 4 21 Detach 18 | . . . 8 10 Swap 80 | . 9 4 24 43 Drop 68 | . 6 . 42 20 Fire 150 | 9 30 5 18 88 Melee 8 | . . 3 5 . Ram . | . . . . . Kick 3 | . . . . 3 Crush 2 | . 2 . . . Escape Stasis . | . . . . . Rewire . | . . . . . Trap . | . . . . . Miscellaneous 17 | . . . 17 . Route ------- -11/Scrapyard -10/Materials (discovered 6 exits: [*Mat x3] / [*Min x2] / [*Sub]) -10/Subcaves -9/Scraptown (discovered 2 exits: *Fac x2) -6/Factory (discovered 6 exits: Fac x4 / [*Low] / [*Ext]) History --------- Turn | Location | Event 1 | -11/Scrapyard | Discovered new exit (range 3) 70 | -11/Scrapyard | Entered Materials 158 | -10/Materials | Discovered new exit (range 5) 265 | -10/Materials | Discovered new exit (range 15) 316 | -10/Materials | Build established: Mutant 413 | -10/Materials | Discovered new exit (range 9) 611 | -10/Materials | Discovered new exit (range 15) 747 | -10/Materials | Discovered new exit (range 13) 747 | -10/Materials | Discovered new exit (range 15) 1261 | -10/Materials | Entered Subcaves 1262 | -10/Subcaves | Approached by a straggling Scientist 1284 | -10/Subcaves | Shifting Twisted Machinery released Flamer 1289 | -10/Subcaves | Shifting Twisted Machinery released Battle Cannon 1488 | -10/Subcaves | Learned Materials terminal intel 1529 | -10/Subcaves | Entered Scraptown 1679 | -9/Scraptown | Learned location of Extension (-6) 1704 | -9/Scraptown | Visited The Evicted 1755 | -9/Scraptown | Visited Red Mages 1822 | -9/Scraptown | Visited Bundlers 2310 | -9/Scraptown | Visited Awakened 2811 | -9/Scraptown | Visited UFD Registry 2849 | -9/Scraptown | Visited Spacefarers 2969 | -9/Scraptown | Visited Science Testing Area 3003 | -9/Scraptown | Visited Fellowship of the Rings 3113 | -9/Scraptown | Discovered new exit (range 13) 3349 | -9/Scraptown | Registered with UFD as "Longrunner" 3462 | -9/Scraptown | Visited Junk Repository 3579 | -9/Scraptown | Visited LU-1G1's Boring Crew 3691 | -9/Scraptown | Visited Analyses Database 4058 | -9/Scraptown | Visited Chapter 10 4124 | -9/Scraptown | Visited Scrap Suit Storage 4485 | -9/Scraptown | Visited Infowarlord's Domain 4523 | -9/Scraptown | Visited DA-N13 Charitable Foundation 4538 | -9/Scraptown | Found DCF Scrap (30 items) 4581 | -9/Scraptown | Visited Observation Area 4670 | -9/Scraptown | Discovered new exit (range 5) 4827 | -9/Scraptown | Visited Curators Association 4898 | -9/Scraptown | Met Optimus 4898 | -9/Scraptown | Accepted into 0bPrime 5298 | -9/Scraptown | Civil war broke out across Scraptown 5360 | -9/Scraptown | Lost 7 allies 5433 | -9/Scraptown | Found Surveybot 24 Chip 5447 | -9/Scraptown | Found Prototype Storage 5447 | -9/Scraptown | Identified Vmp. Humpback 5478 | -9/Scraptown | Optimus destroyed in the chaos of civil war 5570 | -9/Scraptown | Lost 3 allies 5612 | -9/Scraptown | Found Prototype Special Weapon 5613 | -9/Scraptown | Identified LU-1G1's Laser Shovel 5678 | -9/Scraptown | Found Scrap Suit 5868 | -9/Scraptown | Core integrity fell below 50% 5896 | -9/Scraptown | Lost 3 parts (1p1n1w) 5955 | -9/Scraptown | Found ID Mask 5955 | -9/Scraptown | ID Mask engaged 5960 | -9/Scraptown | Lost 4 allies 6034 | -9/Scraptown | Found Exp. Terrain Scanner 6081 | -9/Scraptown | ID Mask no longer valid 6123 | -9/Scraptown | Lost 8 allies 6131 | -9/Scraptown | Core integrity fell below 20% 6245 | -9/Scraptown | Lost 8 allies 6386 | -9/Scraptown | Entered Factory 6386 | -6/Factory | Evolved 8 slots: Propulsion x3, Utility x4, Weapon x1 6435 | -6/Factory | Identified exit to Factory 6671 | -6/Factory | Build established: Scavenger-Scrapper 6726 | -6/Factory | Discovered new exit (range 17) 6733 | -6/Factory | Discovered new exit (range 27) 7132 | -6/Factory | Fabricated Myomer Leg (x2) 7454 | -6/Factory | Fabricated Hyp. Mass Driver (x2) 8178 | -6/Factory | Cargo convoy interrupted 8213 | -6/Factory | System corruption reached 10% 8252 | -6/Factory | Destroyed 8 combat bots 8257 | -6/Factory | Lost 7 parts (1p3n2u1w) 8368 | -6/Factory | Core integrity fell below 50% 8376 | -6/Factory | Spotted B-75 Beast 8393 | -6/Factory | Core integrity fell below 20% 8399 | -6/Factory | Destroyed by Y-54 Guardian with Flak Gun Last Messages --------------- 08379_ B2YFG ID |R6UPAQ0U 08379_ Door malfunctions. 08379_ U-05 Engineer destroyed. 08379_ Acquired 2 matter. 08383_ K-01 Serf collects debris. 08384_ Neutrino Reactor explodes. 08384_ K-01 Serf destroyed. 08384_ Neutrino Reactor explodes. 08384_ S-27 Virus destroyed. 08384_ Chain reaction triggered in Corrupted Lgt. Nuclear Core. 08384_ Chain reaction triggered in Corrupted Lgt. Ion Engine. 08384_ Imp. Hacking Suite destroyed. 08389_ K-01 Serf destroyed. 08391_ K-01 Serf collects debris. 08392_ Extracted 2 matter. 08393_ Acquired 25 matter. 08395_ K-01 Serf collects debris. Map ----- +----------------------------------------------------+ | ## ############## """ """ ## | | ## ############## ?# | | ## """"" ############## ## | | ## """"" #################+############### | | ## """ # ############? ## + | | ## ###?############# ## ? # | | ##""" """"" ### ############# ##? ??? # | | ##"R """"" ### ##########?##?##? ?? # | | ##""" """ ### #############?##?"???""" # | | ## ? ? #########?#####?# ????????"" # | | ??#?############# ?? ?##???#?????????""" # | | ?????????#????#?????" ????????????? ? # | | ????????????????????"??????????????""" """ # | | ????????????????????"???????????#? """ """ + | | ???????????????????? ?????????# ## """ """ # | | ???????????????????? ????????##?## # | | ???????????????????#/#???????#? ##+############ | | ???????????????????# #?????? ## ##### | | ???????????????????# #?????#### ##### | | ???????????????????# #?????# | | ???????????????????# #???### ############+######## | | ####+####??????????# #??#### ### # #### | | # #????????### ####### ### T # #### | | # ########## ### # # #### | | # ### # # #### | | # " k Y @Y + """ # #### | | # s ! = ### # """ # #### | | # % #######+## ### # """ # #### | | # #???? ####+###### ## # #### | | ## ##?? #? ## ######## #### | | ?# #?# # """" ## #################### | | ?# #?# # """" ## # ###### | | ?# #?# # """" ## # ### | | ?# #?# # """" ## # ### | | ?# #?# # """" ## # """"" """"" ### | | ?# #?# # """" ## + """"" """"" ### | | ?# ### # ## # """ """ ### | | ?# "## # # # ### | | # ### ##########T # """"" """"" + | | #?# # ## # """"" """"" ### | | #?# # """ ## # """ """ ### | | #??####### """ ## # ### | | =% ??? ? # """ ## ################# | | = # ? "" # ## # =#### | | # ? "" ###+####### # """ !+!!! | | #? """ # # "R """ #%##+## | | #? """ + + """ """ #!# | | / ? """ # # "" """ #!# | | # #+#+####### ## # # | | #? # # ##/############ # | +----------------------------------------------------+ Best States ------------- Heat Dissipation 56 Energy Generation 29 Energy Capacity 340 Matter Stores 300 Matter Capacity 300 Sight Range 16 Terrain Scan Range 30 Terrain Scan Density 2010 Armor Coverage 225 Core Shielding 20 Evasion (%) 63 Targeting Accuracy 20 Recoil Reduction 2 Offensive Hacking 24 Item Schematics ----------------- Myomer Leg | -6/Factory | Hacked Robot Schematics ------------------ None Fabricated ------------ Myomer Leg | x2 | -6/Factory Hyp. Mass Driver | x2 | -6/Factory | Preloaded Repaired ---------- Nothing Studied --------- None Alien Tech Used ----------------- None Achievements -------------- None Challenges ------------ None Game ------ Seed HoverVariableInterface Manual? 0 Play Time 02:32:43 Cumulative 249.4 hours Start 2025.10.29 @ 18:25:44 End 2025.12.02 @ 16:35:15 Sessions 6 Manual Loads 0 Difficulty Rogue Special Mode None Game No. 64 Rogue 64 Adventurer 0 Explorer 0 Win Type - Total 10 Types 5/0/2/0/1/1/0/1/0/0 Lore% 65 Gallery% 73 Achievement% 48 Wizard Run 0 Options --------- Layout 2 ASCII 0 Keyboard 1 Movement Vi Keybinds 0 Fullscreen 1 Font 24/Smallcaps Map View 50x44 Zoom Use 0% Tactical HUD 1 Map Filters NONE Filters NONE Steam 1 RUN: afead41d-18af-4efc-9752-e7fd9de7e4e3